{"text_format":"1","workbook":"xlsx","n_sheets":2,"sheets":["BneLog","WebADI"],"not_rendered":{"charts":0,"images":1,"macros":1,"external_links":0,"defined_names":31,"comments":0,"pivot_tables":0},"unopened":[],"bounds":{"document_bytes":16777216,"sheet_cells":100000,"rows_first":2000,"rows_last":500,"rows_between":2000,"halvings":0,"cell_chars":16384,"cell_head_chars":4096},"cells_cut":0,"cells_raw":0,"read":"whole","date_system":"1900"}

{"sheet":"BneLog","index":0,"n_rows":1,"n_cols":6,"rows_kept":1,"cut":false,"hidden":true,"merged":[]}
["Date","Time","Log Level","Source","Description","Action"]

{"sheet":"WebADI","index":1,"n_rows":39,"n_cols":15,"rows_kept":39,"cut":false,"hidden":false,"merged":[[7,1,7,2],[7,4,7,5],[8,1,8,2],[8,4,8,5],[9,1,9,2],[9,4,9,5],[3,1,3,2],[3,3,3,4],[4,1,4,2],[4,3,4,4],[6,1,6,2],[6,4,6,5]]}
[]
[]
[]
[null,"Template Name",null,"CTX001"]
[null,"Source Name",null,"COSTTRANSFER_DC"]
[]
[null,"Debit Total",null,"Number",{"$f":"SUM(H:H)","v":0}]
[null,"Credit Total",null,"Number",{"$f":"SUM(I:I)","v":0}]
[null,"Net Total",null,"Number",{"$f":"E7-E8","v":0}]
[null,"Line Counter",null,"Number",{"$f":"COUNTIF(C:C,\"?*\")-2","v":0}]
[]
[null,"Upl","Batch Name","Accounting Date","Transaction Date","Orig GL Date","COA String/PTAEO","Debit Amount","Credit Amount","Description","Reference 1","Line #",null,null,"Messages"]
[null,null,"* Text","* Date","Date","Date","Text","Number","Number","* Text","Text","* Number"]
[null,null,null,null,null,null,null,null,null,null,null,{"$f":"ROW()-13","v":1}]
[null,null,null,null,null,null,null,null,null,null,null,2]
[null,null,null,null,null,null,null,null,null,null,null,3]
[null,null,null,null,null,null,null,null,null,null,null,4]
[null,null,null,null,null,null,null,null,null,null,null,5]
[null,null,null,null,null,null,null,null,null,null,null,6]
[null,null,null,null,null,null,null,null,null,null,null,7]
[null,null,null,null,null,null,null,null,null,null,null,8]
[null,null,null,null,null,null,null,null,null,null,null,9]
[null,null,null,null,null,null,null,null,null,null,null,10]
[null,null,null,null,null,null,null,null,null,null,null,11]
[null,null,null,null,null,null,null,null,null,null,null,12]
[null,null,null,null,null,null,null,null,null,null,null,13]
[null,null,null,null,null,null,null,null,null,null,null,14]
[null,null,null,null,null,null,null,null,null,null,null,15]
[null,null,null,null,null,null,null,null,null,null,null,16]
[null,null,null,null,null,null,null,null,null,null,null,17]
[null,null,null,null,null,null,null,null,null,null,null,18]
[null,null,null,null,null,null,null,null,null,null,null,19]
[null,null,null,null,null,null,null,null,null,null,null,20]
[null,null,null,null,null,null,null,null,null,null,null,21]
[null,null,null,null,null,null,null,null,null,null,null,22]
[null,null,null,null,null,null,null,null,null,null,null,23]
[null,null,null,null,null,null,null,null,null,null,null,24]
[null,null,null,null,null,null,null,null,null,null,null,25]
[null,"Tip: This is not the end of the Template.  Unprotect the sheet and insert as many rows as needed."]